[Event "Titled Tuesday Blitz July 18 Late 2023"]
[White "Begmuratov, Alisher"]
[Black "WindWhistler11"]
[WhiteFideId "14203367"]
[WhiteElo "2644"]
[BlackElo "2456"]
[Result "1-0"]
[Round "7"]
[TimeControl "180+2"]
[Date "2023.07.18"]
[WhiteClock "0:02:24"]
[BlackClock "0:00:21"]
[Board "72"]

1. Nf3 {[%clk 0:03:00]}  f5 {[%clk 0:02:57]} 2. e4 {[%clk 0:02:59]}  d6 {[%clk 0:02:55]} 3. Nc3 {[%clk 0:02:56]}  e5 {[%clk 0:02:53]} 4. d4 {[%clk 0:02:55]}  exd4 {[%clk 0:02:45]} 5. Qxd4 {[%clk 0:02:53]}  Nc6 {[%clk 0:02:44]} 6. Bb5 {[%clk 0:02:53]}  Bd7 {[%clk 0:02:36]} 7. Bxc6 {[%clk 0:02:53]}  bxc6 {[%clk 0:02:36]} 8. Bg5 {[%clk 0:02:52]}  Nf6 {[%clk 0:02:22]} 9. e5 {[%clk 0:02:52]}  dxe5 {[%clk 0:02:19]} 10. Nxe5 {[%clk 0:02:50]}  Bd6 {[%clk 0:02:08]} 11. O-O-O {[%clk 0:02:40]}  h6 {[%clk 0:01:46]} 12. Bxf6 {[%clk 0:02:32]}  Qxf6 {[%clk 0:01:42]} 13. Rhe1 {[%clk 0:02:31]}  Kd8 {[%clk 0:00:41]} 14. Kb1 {[%clk 0:02:31]}  Rb8 {[%clk 0:00:39]} 15. Qxa7 {[%clk 0:02:28]}  Rxb2+ {[%clk 0:00:29]} 16. Kxb2 {[%clk 0:02:26]}  Bxe5 {[%clk 0:00:26]} 17. Rxe5 {[%clk 0:02:25]}  Qxe5 {[%clk 0:00:25]} 18. Qb8+ {[%clk 0:02:24]}  Ke7 {[%clk 0:00:21]} 19. Qxh8 {[%clk 0:02:24]} 1-0


[Site "https://www.chess.com"]

[Event "Titled Tuesday Blitz July 18 Late 2023"]
[White "Disconzi da Silva, Rodrigo"]
[Black "Grebeniuk, Semen"]
[WhiteFideId "2100991"]
[BlackFideId "14117509"]
[WhiteElo "2440"]
[BlackElo "2568"]
[Result "1-0"]
[Round "7"]
[TimeControl "180+2"]
[Date "2023.07.18"]
[WhiteClock "0:00:33"]
[BlackClock "0:00:00"]
[Board "77"]

1. d4 {[%clk 0:03:00]}  f5 {[%clk 0:02:54]} 2. h3 {[%clk 0:02:59]}  b6 {[%clk 0:02:53]} 3. g4 {[%clk 0:02:57]}  Bb7 {[%clk 0:02:53]} 4. d5 {[%clk 0:02:56]}  Nf6 {[%clk 0:02:52]} 5. Nc3 {[%clk 0:02:54]}  e6 {[%clk 0:02:45]} 6. Bg2 {[%clk 0:02:51]}  Bb4 {[%clk 0:02:36]} 7. Bg5 {[%clk 0:02:44]}  h6 {[%clk 0:02:34]} 8. Bxf6 {[%clk 0:02:44]}  Qxf6 {[%clk 0:02:35]} 9. Qd3 {[%clk 0:02:33]}  Na6 {[%clk 0:02:29]} 10. gxf5 {[%clk 0:02:31]}  Nc5 {[%clk 0:02:26]} 11. Qc4 {[%clk 0:02:31]}  Bxc3+ {[%clk 0:02:24]} 12. Qxc3 {[%clk 0:02:31]}  Qxc3+ {[%clk 0:02:16]} 13. bxc3 {[%clk 0:02:32]}  exf5 {[%clk 0:02:15]} 14. e3 {[%clk 0:02:25]}  O-O-O {[%clk 0:02:09]} 15. Ne2 {[%clk 0:02:24]}  g5 {[%clk 0:02:08]} 16. Nd4 {[%clk 0:02:16]}  Rhf8 {[%clk 0:02:07]} 17. O-O-O {[%clk 0:01:58]}  Rde8 {[%clk 0:02:06]} 18. h4 {[%clk 0:01:57]}  g4 {[%clk 0:02:06]} 19. Ne2 {[%clk 0:01:54]}  Na4 {[%clk 0:01:31]} 20. Rd4 {[%clk 0:01:53]}  Nc5 {[%clk 0:01:21]} 21. Rf4 {[%clk 0:01:52]}  Re5 {[%clk 0:01:15]} 22. Rd1 {[%clk 0:01:52]}  Ba6 {[%clk 0:01:06]} 23. Ng3 {[%clk 0:01:52]}  Bb7 {[%clk 0:00:51]} 24. c4 {[%clk 0:01:50]}  Kd8 {[%clk 0:00:51]} 25. Bf1 {[%clk 0:01:41]}  Ke7 {[%clk 0:00:50]} 26. Bd3 {[%clk 0:01:41]}  Ne4 {[%clk 0:00:44]} 27. Bxe4 {[%clk 0:01:35]}  fxe4 {[%clk 0:00:45]} 28. Rxe4 {[%clk 0:01:30]}  Kd6 {[%clk 0:00:39]} 29. Rdd4 {[%clk 0:01:26]}  Rxf2 {[%clk 0:00:36]} 30. Rxg4 {[%clk 0:01:25]}  Rh2 {[%clk 0:00:27]} 31. Rg6+ {[%clk 0:01:20]}  Kc5 {[%clk 0:00:26]} 32. Ne4+ {[%clk 0:01:17]}  Kb4 {[%clk 0:00:26]} 33. Kb2 {[%clk 0:01:15]}  Rxh4 {[%clk 0:00:14]} 34. a3+ {[%clk 0:01:10]}  Ka5 {[%clk 0:00:14]} 35. Nd2 {[%clk 0:01:02]}  Rxd4 {[%clk 0:00:12]} 36. exd4 {[%clk 0:01:02]}  Rh5 {[%clk 0:00:12]} 37. Rg7 {[%clk 0:00:55]}  b5 {[%clk 0:00:07]} 38. Rxd7 {[%clk 0:00:51]}  bxc4 {[%clk 0:00:07]} 39. Nxc4+ {[%clk 0:00:51]}  Kb5 {[%clk 0:00:07]} 40. Rxc7 {[%clk 0:00:48]}  Bxd5 {[%clk 0:00:06]} 41. Rc5+ {[%clk 0:00:42]}  Ka6 {[%clk 0:00:06]} 42. Ne3 {[%clk 0:00:41]}  Bf3 {[%clk 0:00:05]} 43. Rxh5 {[%clk 0:00:35]}  Bxh5 {[%clk 0:00:06]} 44. Nf5 {[%clk 0:00:35]}  Kb5 {[%clk 0:00:00]} 45. Kc3 {[%clk 0:00:33]} 1-0


[Site "https://www.chess.com"]

[Event "Titled Tuesday Blitz July 18 Late 2023"]
[White "Musovic, Armin"]
[Black "Kovacsy, Barnabas"]
[WhiteFideId "939935"]
[BlackFideId "769290"]
[WhiteElo "2545"]
[BlackElo "2432"]
[Result "1-0"]
[Round "7"]
[TimeControl "180+2"]
[Date "2023.07.18"]
[WhiteClock "0:00:51"]
[BlackClock "0:00:02"]
[Board "80"]

1. e4 {[%clk 0:03:00]}  c5 {[%clk 0:03:00]} 2. c3 {[%clk 0:03:00]}  d5 {[%clk 0:02:54]} 3. exd5 {[%clk 0:03:00]}  Qxd5 {[%clk 0:02:55]} 4. Na3 {[%clk 0:03:00]}  Nf6 {[%clk 0:02:46]} 5. h3 {[%clk 0:02:59]}  e6 {[%clk 0:02:45]} 6. Nf3 {[%clk 0:03:00]}  Nc6 {[%clk 0:02:43]} 7. Bc4 {[%clk 0:02:59]}  Qd8 {[%clk 0:02:42]} 8. O-O {[%clk 0:02:58]}  a6 {[%clk 0:02:40]} 9. Re1 {[%clk 0:02:58]}  b5 {[%clk 0:02:40]} 10. Bf1 {[%clk 0:02:58]}  Bb7 {[%clk 0:02:39]} 11. Nc2 {[%clk 0:02:57]}  Be7 {[%clk 0:02:39]} 12. a4 {[%clk 0:02:58]}  bxa4 {[%clk 0:02:34]} 13. Rxa4 {[%clk 0:02:52]}  O-O {[%clk 0:02:32]} 14. d4 {[%clk 0:02:50]}  cxd4 {[%clk 0:02:31]} 15. Ncxd4 {[%clk 0:02:51]}  Nxd4 {[%clk 0:02:29]} 16. Rxd4 {[%clk 0:02:52]}  Qb6 {[%clk 0:02:27]} 17. Qc2 {[%clk 0:02:46]}  Rad8 {[%clk 0:02:24]} 18. Rh4 {[%clk 0:02:45]}  g6 {[%clk 0:02:10]} 19. Ng5 {[%clk 0:02:30]}  h5 {[%clk 0:02:09]} 20. Be3 {[%clk 0:02:20]}  Qc7 {[%clk 0:01:57]} 21. Rc4 {[%clk 0:02:11]}  Qd7 {[%clk 0:01:52]} 22. Bb6 {[%clk 0:02:05]}  Nd5 {[%clk 0:01:17]} 23. Bxd8 {[%clk 0:01:55]}  Bxd8 {[%clk 0:01:16]} 24. Nxe6 {[%clk 0:01:37]}  fxe6 {[%clk 0:01:14]} 25. Qxg6+ {[%clk 0:01:36]}  Qg7 {[%clk 0:01:14]} 26. Qxg7+ {[%clk 0:01:32]}  Kxg7 {[%clk 0:01:14]} 27. Rxe6 {[%clk 0:01:33]}  Bf6 {[%clk 0:00:52]} 28. Rc5 {[%clk 0:01:23]}  Rf7 {[%clk 0:00:35]} 29. Bxa6 {[%clk 0:01:17]}  Nf4 {[%clk 0:00:34]} 30. Rb6 {[%clk 0:01:06]}  Ba8 {[%clk 0:00:20]} 31. Bf1 {[%clk 0:00:59]}  Be7 {[%clk 0:00:18]} 32. Rc7 {[%clk 0:00:56]}  Kh7 {[%clk 0:00:15]} 33. Rb8 {[%clk 0:00:53]}  Rg7 {[%clk 0:00:14]} 34. Rxe7 {[%clk 0:00:51]}  Rxe7 {[%clk 0:00:10]} 35. Rxa8 {[%clk 0:00:52]}  Rg7 {[%clk 0:00:10]} 36. g3 {[%clk 0:00:51]}  Nd5 {[%clk 0:00:09]} 37. Bd3+ {[%clk 0:00:51]}  Kh6 {[%clk 0:00:02]} 38. h4 {[%clk 0:00:51]} 1-0


[Site "https://www.chess.com"]

[Event "Titled Tuesday Blitz July 18 Late 2023"]
[White "Poltorak, Sebastian"]
[Black "Rios Escobar, Adan"]
[WhiteFideId "1199498"]
[BlackFideId "3403645"]
[WhiteElo "2526"]
[BlackElo "2429"]
[Result "1-0"]
[Round "7"]
[TimeControl "180+2"]
[Date "2023.07.18"]
[WhiteClock "0:00:06"]
[BlackClock "0:00:03"]
[Board "82"]

1. e4 {[%clk 0:03:00]}  c5 {[%clk 0:02:59]} 2. Nf3 {[%clk 0:02:54]}  d6 {[%clk 0:02:59]} 3. c3 {[%clk 0:02:52]}  Nf6 {[%clk 0:02:56]} 4. Be2 {[%clk 0:02:51]}  g6 {[%clk 0:02:48]} 5. O-O {[%clk 0:02:51]}  Bg7 {[%clk 0:02:48]} 6. Bb5+ {[%clk 0:02:51]}  Nbd7 {[%clk 0:02:38]} 7. Re1 {[%clk 0:02:48]}  O-O {[%clk 0:02:37]} 8. d4 {[%clk 0:02:45]}  a6 {[%clk 0:02:35]} 9. Bf1 {[%clk 0:02:43]}  e5 {[%clk 0:02:33]} 10. h3 {[%clk 0:02:33]}  b5 {[%clk 0:02:16]} 11. Nbd2 {[%clk 0:02:28]}  cxd4 {[%clk 0:02:07]} 12. cxd4 {[%clk 0:02:27]}  exd4 {[%clk 0:02:05]} 13. Nxd4 {[%clk 0:02:26]}  Bb7 {[%clk 0:02:05]} 14. f3 {[%clk 0:01:54]}  Qb6 {[%clk 0:01:57]} 15. Nb3 {[%clk 0:01:53]}  Ne5 {[%clk 0:01:39]} 16. Be3 {[%clk 0:01:49]}  Nc4 {[%clk 0:01:39]} 17. Bxc4 {[%clk 0:00:41]}  bxc4 {[%clk 0:01:40]} 18. Nd2 {[%clk 0:00:41]}  Nd5 {[%clk 0:00:53]} 19. exd5 {[%clk 0:00:38]}  Bxd4 {[%clk 0:00:52]} 20. Nxc4 {[%clk 0:00:39]}  Bxe3+ {[%clk 0:00:52]} 21. Rxe3 {[%clk 0:00:31]}  Qc5 {[%clk 0:00:51]} 22. Qd3 {[%clk 0:00:16]}  Bxd5 {[%clk 0:00:37]} 23. b3 {[%clk 0:00:17]}  Bxc4 {[%clk 0:00:33]} 24. bxc4 {[%clk 0:00:16]}  Rfe8 {[%clk 0:00:28]} 25. Re1 {[%clk 0:00:17]}  Rac8 {[%clk 0:00:23]} 26. Kh2 {[%clk 0:00:14]}  Rxe3 {[%clk 0:00:23]} 27. Rxe3 {[%clk 0:00:14]}  Qxc4 {[%clk 0:00:17]} 28. Qxd6 {[%clk 0:00:13]}  Qxa2 {[%clk 0:00:10]} 29. Qd4 {[%clk 0:00:10]}  Qc2 {[%clk 0:00:06]} 30. Re7 {[%clk 0:00:08]}  Qc6 {[%clk 0:00:02]} 31. h4 {[%clk 0:00:06]}  h5 {[%clk 0:00:02]} 32. Rd7 {[%clk 0:00:05]}  a5 {[%clk 0:00:01]} 33. Rd6 {[%clk 0:00:05]}  Qc7 {[%clk 0:00:01]} 34. Kh3 {[%clk 0:00:05]}  Re8 {[%clk 0:00:01]} 35. Rd7 {[%clk 0:00:05]}  Qc8 {[%clk 0:00:02]} 36. Kh2 {[%clk 0:00:05]}  Qb8+ {[%clk 0:00:01]} 37. f4 {[%clk 0:00:05]}  Qc8 {[%clk 0:00:02]} 38. Qd5 {[%clk 0:00:05]}  Qb8 {[%clk 0:00:03]} 39. Qxf7+ {[%clk 0:00:05]}  Kh8 {[%clk 0:00:03]} 40. Qg7# {[%clk 0:00:06]} 1-0


[Site "https://www.chess.com"]

[Event "Titled Tuesday Blitz July 18 Late 2023"]
[White "Graif, William"]
[Black "Mazurkiewicz, Michal"]
[WhiteFideId "2609835"]
[BlackFideId "1124943"]
[WhiteElo "2519"]
[BlackElo "2421"]
[Result "1-0"]
[Round "7"]
[TimeControl "180+2"]
[Date "2023.07.18"]
[WhiteClock "0:00:07"]
[BlackClock "0:00:00"]
[Board "85"]

1. e4 {[%clk 0:03:00]}  d6 {[%clk 0:02:59]} 2. Nc3 {[%clk 0:02:57]}  Nf6 {[%clk 0:02:59]} 3. f4 {[%clk 0:02:57]}  c5 {[%clk 0:02:59]} 4. Nf3 {[%clk 0:02:56]}  Nc6 {[%clk 0:02:59]} 5. Bb5 {[%clk 0:02:51]}  e6 {[%clk 0:02:52]} 6. Bxc6+ {[%clk 0:02:47]}  bxc6 {[%clk 0:02:52]} 7. d3 {[%clk 0:02:40]}  d5 {[%clk 0:02:51]} 8. e5 {[%clk 0:02:36]}  Ng8 {[%clk 0:02:47]} 9. O-O {[%clk 0:02:35]}  h5 {[%clk 0:02:46]} 10. Na4 {[%clk 0:02:22]}  Nh6 {[%clk 0:02:42]} 11. c4 {[%clk 0:02:21]}  Be7 {[%clk 0:02:37]} 12. b3 {[%clk 0:02:15]}  Nf5 {[%clk 0:02:31]} 13. Re1 {[%clk 0:01:48]}  O-O {[%clk 0:02:28]} 14. Ba3 {[%clk 0:01:47]}  Qa5 {[%clk 0:02:27]} 15. Qd2 {[%clk 0:01:38]}  Qa6 {[%clk 0:01:03]} 16. Kh1 {[%clk 0:01:29]}  Re8 {[%clk 0:00:55]} 17. Qf2 {[%clk 0:01:18]}  g6 {[%clk 0:00:50]} 18. Bxc5 {[%clk 0:01:06]}  Bxc5 {[%clk 0:00:39]} 19. Qxc5 {[%clk 0:00:59]}  Bd7 {[%clk 0:00:29]} 20. Nd4 {[%clk 0:00:52]}  Nxd4 {[%clk 0:00:28]} 21. Qxd4 {[%clk 0:00:51]}  Rad8 {[%clk 0:00:28]} 22. Nc5 {[%clk 0:00:36]}  Qb6 {[%clk 0:00:27]} 23. Rac1 {[%clk 0:00:31]}  Bc8 {[%clk 0:00:24]} 24. Red1 {[%clk 0:00:22]}  Ba6 {[%clk 0:00:24]} 25. Qg1 {[%clk 0:00:18]}  d4 {[%clk 0:00:22]} 26. Ne4 {[%clk 0:00:17]}  Kg7 {[%clk 0:00:19]} 27. Qf2 {[%clk 0:00:15]}  c5 {[%clk 0:00:17]} 28. Qh4 {[%clk 0:00:15]}  Bb7 {[%clk 0:00:16]} 29. Nf6 {[%clk 0:00:15]}  Rh8 {[%clk 0:00:15]} 30. Qg5 {[%clk 0:00:13]}  h4 {[%clk 0:00:12]} 31. h3 {[%clk 0:00:12]}  Qc6 {[%clk 0:00:12]} 32. Rd2 {[%clk 0:00:12]}  Kf8 {[%clk 0:00:11]} 33. Ne4 {[%clk 0:00:10]}  Re8 {[%clk 0:00:03]} 34. Rf1 {[%clk 0:00:09]}  Rh5 {[%clk 0:00:03]} 35. Qg4 {[%clk 0:00:08]}  Rf5 {[%clk 0:00:03]} 36. Qxh4 {[%clk 0:00:08]}  Kg7 {[%clk 0:00:02]} 37. g4 {[%clk 0:00:08]}  Rh8 {[%clk 0:00:03]} 38. Qg3 {[%clk 0:00:08]}  Rfh5 {[%clk 0:00:03]} 39. gxh5 {[%clk 0:00:08]}  Rxh5 {[%clk 0:00:03]} 40. Kh2 {[%clk 0:00:08]}  Qc7 {[%clk 0:00:03]} 41. Rg2 {[%clk 0:00:08]}  Qe7 {[%clk 0:00:03]} 42. Rgf2 {[%clk 0:00:08]}  Bxe4 {[%clk 0:00:03]} 43. dxe4 {[%clk 0:00:09]}  Qf8 {[%clk 0:00:02]} 44. f5 {[%clk 0:00:09]}  g5 {[%clk 0:00:02]} 45. f6+ {[%clk 0:00:09]}  Kg6 {[%clk 0:00:02]} 46. Rg2 {[%clk 0:00:08]}  Qh6 {[%clk 0:00:03]} 47. Rfg1 {[%clk 0:00:07]}  Kh7 {[%clk 0:00:03]} 48. Qg4 {[%clk 0:00:07]}  Rh4 {[%clk 0:00:03]} 49. Qf3 {[%clk 0:00:07]}  Kh8 {[%clk 0:00:00]} 50. Rxg5 {[%clk 0:00:07]} 1-0


[Site "https://www.chess.com"]

[Event "Titled Tuesday Blitz July 18 Late 2023"]
[White "cedchass2006"]
[Black "Urbina Perez, Juan Antonio"]
[BlackFideId "2217368"]
[WhiteElo "2413"]
[BlackElo "2509"]
[Result "0-1"]
[Round "7"]
[TimeControl "180+2"]
[Date "2023.07.18"]
[WhiteClock "0:00:09"]
[BlackClock "0:00:16"]
[Board "86"]

1. e4 {[%clk 0:03:00]}  c5 {[%clk 0:02:59]} 2. Nf3 {[%clk 0:03:00]}  d6 {[%clk 0:03:00]} 3. Bb5+ {[%clk 0:03:00]}  Bd7 {[%clk 0:02:59]} 4. Bxd7+ {[%clk 0:03:00]}  Nxd7 {[%clk 0:03:00]} 5. O-O {[%clk 0:02:58]}  Ngf6 {[%clk 0:03:01]} 6. Qe2 {[%clk 0:02:58]}  e6 {[%clk 0:03:01]} 7. c3 {[%clk 0:02:57]}  Be7 {[%clk 0:03:01]} 8. d4 {[%clk 0:02:58]}  O-O {[%clk 0:03:01]} 9. Bg5 {[%clk 0:02:49]}  Re8 {[%clk 0:02:59]} 10. Rd1 {[%clk 0:02:47]}  Qc7 {[%clk 0:02:53]} 11. Nbd2 {[%clk 0:02:41]}  cxd4 {[%clk 0:02:51]} 12. cxd4 {[%clk 0:02:42]}  Qb6 {[%clk 0:02:49]} 13. Nf1 {[%clk 0:02:32]}  Rac8 {[%clk 0:02:44]} 14. Ng3 {[%clk 0:02:31]}  h6 {[%clk 0:02:39]} 15. Be3 {[%clk 0:02:31]}  Qa5 {[%clk 0:02:31]} 16. Qd2 {[%clk 0:02:27]}  Qxd2 {[%clk 0:02:21]} 17. Rxd2 {[%clk 0:02:28]}  Ng4 {[%clk 0:02:19]} 18. Nf1 {[%clk 0:02:07]}  Nb6 {[%clk 0:02:15]} 19. Rd3 {[%clk 0:01:55]}  Rc2 {[%clk 0:02:08]} 20. Rd2 {[%clk 0:01:47]}  Rec8 {[%clk 0:02:06]} 21. Rad1 {[%clk 0:01:39]}  Rxd2 {[%clk 0:01:55]} 22. Bxd2 {[%clk 0:01:29]}  Nf6 {[%clk 0:01:33]} 23. Ng3 {[%clk 0:01:24]}  Rc2 {[%clk 0:01:25]} 24. Bc1 {[%clk 0:00:45]}  Na4 {[%clk 0:01:13]} 25. Ne1 {[%clk 0:00:25]}  Nxb2 {[%clk 0:01:10]} 26. Nxc2 {[%clk 0:00:21]}  Nxd1 {[%clk 0:01:11]} 27. Kf1 {[%clk 0:00:19]}  Nc3 {[%clk 0:01:10]} 28. f3 {[%clk 0:00:19]}  Nxa2 {[%clk 0:01:10]} 29. Bd2 {[%clk 0:00:19]}  d5 {[%clk 0:01:10]} 30. e5 {[%clk 0:00:18]}  Nd7 {[%clk 0:01:09]} 31. Ke2 {[%clk 0:00:19]}  Nb6 {[%clk 0:01:03]} 32. Kd3 {[%clk 0:00:19]}  Nc4 {[%clk 0:01:04]} 33. Bc3 {[%clk 0:00:18]}  Nxc3 {[%clk 0:01:03]} 34. Kxc3 {[%clk 0:00:19]}  Kf8 {[%clk 0:00:59]} 35. Ne2 {[%clk 0:00:18]}  Ke8 {[%clk 0:00:58]} 36. Nc1 {[%clk 0:00:18]}  Kd7 {[%clk 0:00:56]} 37. Nd3 {[%clk 0:00:19]}  a5 {[%clk 0:00:53]} 38. f4 {[%clk 0:00:18]}  g6 {[%clk 0:00:52]} 39. g4 {[%clk 0:00:18]}  b5 {[%clk 0:00:50]} 40. Kb3 {[%clk 0:00:09]}  Kc6 {[%clk 0:00:47]} 41. h3 {[%clk 0:00:08]}  Nd2+ {[%clk 0:00:40]} 42. Kc3 {[%clk 0:00:07]}  Ne4+ {[%clk 0:00:40]} 43. Kb3 {[%clk 0:00:04]}  b4 {[%clk 0:00:37]} 44. Ne3 {[%clk 0:00:03]}  Kb5 {[%clk 0:00:34]} 45. f5 {[%clk 0:00:03]}  gxf5 {[%clk 0:00:33]} 46. gxf5 {[%clk 0:00:04]}  a4+ {[%clk 0:00:33]} 47. Kc2 {[%clk 0:00:04]}  a3 {[%clk 0:00:20]} 48. Kb3 {[%clk 0:00:03]}  Nd2+ {[%clk 0:00:19]} 49. Ka2 {[%clk 0:00:04]}  b3+ {[%clk 0:00:15]} 50. Ka1 {[%clk 0:00:01]}  b2+ {[%clk 0:00:14]} 51. Nxb2 {[%clk 0:00:02]}  axb2+ {[%clk 0:00:14]} 52. Kxb2 {[%clk 0:00:03]}  Nc4+ {[%clk 0:00:15]} 53. Nxc4 {[%clk 0:00:02]}  Kxc4 {[%clk 0:00:16]} 54. f6 {[%clk 0:00:03]}  Bxf6 {[%clk 0:00:12]} 55. exf6 {[%clk 0:00:03]}  Kxd4 {[%clk 0:00:12]} 56. Kc2 {[%clk 0:00:03]}  Ke5 {[%clk 0:00:12]} 57. Kd2 {[%clk 0:00:04]}  Kxf6 {[%clk 0:00:13]} 58. Kd3 {[%clk 0:00:04]}  Kg5 {[%clk 0:00:14]} 59. Kd4 {[%clk 0:00:04]}  Kh4 {[%clk 0:00:14]} 60. Kc5 {[%clk 0:00:05]}  Kxh3 {[%clk 0:00:14]} 61. Kd6 {[%clk 0:00:06]}  d4 {[%clk 0:00:14]} 62. Ke7 {[%clk 0:00:07]}  d3 {[%clk 0:00:14]} 63. Kxf7 {[%clk 0:00:07]}  d2 {[%clk 0:00:14]} 64. Kxe6 {[%clk 0:00:08]}  d1=Q {[%clk 0:00:15]} 65. Ke5 {[%clk 0:00:09]}  Qg4 {[%clk 0:00:14]} 66. Kf6 {[%clk 0:00:09]}  Kg3 {[%clk 0:00:14]} 67. Ke5 {[%clk 0:00:10]}  h5 {[%clk 0:00:15]} 68. Kf6 {[%clk 0:00:11]}  h4 {[%clk 0:00:16]} 69. Kf7 {[%clk 0:00:09]}  h3 {[%clk 0:00:16]} 0-1


[Site "https://www.chess.com"]

[Event "Titled Tuesday Blitz July 18 Late 2023"]
[White "Hnydiuk, Aleksander"]
[Black "Jonkman, Harmen"]
[WhiteFideId "1109057"]
[BlackFideId "1002708"]
[WhiteElo "2507"]
[BlackElo "2410"]
[Result "1-0"]
[Round "7"]
[TimeControl "180+2"]
[Date "2023.07.18"]
[WhiteClock "0:00:05"]
[BlackClock "0:00:00"]
[Board "87"]

1. e4 {[%clk 0:03:00]}  e5 {[%clk 0:02:58]} 2. Nf3 {[%clk 0:02:57]}  Nc6 {[%clk 0:02:58]} 3. Bb5 {[%clk 0:02:57]}  Nf6 {[%clk 0:02:57]} 4. d3 {[%clk 0:02:56]}  Bc5 {[%clk 0:02:56]} 5. O-O {[%clk 0:02:55]}  O-O {[%clk 0:02:56]} 6. c3 {[%clk 0:02:52]}  d6 {[%clk 0:02:53]} 7. Nbd2 {[%clk 0:02:47]}  a6 {[%clk 0:02:51]} 8. Ba4 {[%clk 0:02:47]}  Ba7 {[%clk 0:02:49]} 9. h3 {[%clk 0:02:44]}  Ne7 {[%clk 0:02:49]} 10. Re1 {[%clk 0:02:42]}  Ng6 {[%clk 0:02:49]} 11. Nf1 {[%clk 0:02:41]}  Bd7 {[%clk 0:02:39]} 12. Bc2 {[%clk 0:02:38]}  Re8 {[%clk 0:02:36]} 13. d4 {[%clk 0:02:34]}  exd4 {[%clk 0:02:29]} 14. cxd4 {[%clk 0:02:33]}  c5 {[%clk 0:02:28]} 15. d5 {[%clk 0:02:29]}  c4 {[%clk 0:02:23]} 16. Be3 {[%clk 0:02:18]}  b5 {[%clk 0:02:21]} 17. Bxa7 {[%clk 0:02:16]}  Rxa7 {[%clk 0:02:21]} 18. Qd4 {[%clk 0:02:16]}  Rc7 {[%clk 0:02:18]} 19. a4 {[%clk 0:02:14]}  Qc8 {[%clk 0:02:17]} 20. axb5 {[%clk 0:02:13]}  axb5 {[%clk 0:02:17]} 21. Ng3 {[%clk 0:02:05]}  c3 {[%clk 0:01:59]} 22. bxc3 {[%clk 0:01:42]}  Rxc3 {[%clk 0:01:58]} 23. Bd3 {[%clk 0:01:40]}  Nf4 {[%clk 0:01:55]} 24. Bf1 {[%clk 0:01:36]}  Nxh3+ {[%clk 0:01:45]} 25. gxh3 {[%clk 0:01:21]}  Rxf3 {[%clk 0:01:43]} 26. Rec1 {[%clk 0:01:11]}  Qb8 {[%clk 0:01:37]} 27. Bg2 {[%clk 0:00:59]}  Rf4 {[%clk 0:01:17]} 28. Qe3 {[%clk 0:00:48]}  Rh4 {[%clk 0:01:16]} 29. Qg5 {[%clk 0:00:45]}  Rh6 {[%clk 0:01:15]} 30. Ra6 {[%clk 0:00:39]}  b4 {[%clk 0:00:40]} 31. Qf4 {[%clk 0:00:38]}  Bxh3 {[%clk 0:00:32]} 32. Bxh3 {[%clk 0:00:34]}  Rxh3 {[%clk 0:00:31]} 33. Kg2 {[%clk 0:00:28]}  Rxg3+ {[%clk 0:00:30]} 34. Qxg3 {[%clk 0:00:21]}  Nxe4 {[%clk 0:00:29]} 35. Qf4 {[%clk 0:00:21]}  g5 {[%clk 0:00:20]} 36. Qf5 {[%clk 0:00:19]}  Qb5 {[%clk 0:00:18]} 37. Ra7 {[%clk 0:00:16]}  Rf8 {[%clk 0:00:08]} 38. Rc8 {[%clk 0:00:15]}  Nf6 {[%clk 0:00:03]} 39. Rxf8+ {[%clk 0:00:12]}  Kxf8 {[%clk 0:00:03]} 40. Qxf6 {[%clk 0:00:10]}  Qxd5+ {[%clk 0:00:03]} 41. Kh2 {[%clk 0:00:11]}  b3 {[%clk 0:00:00]} 42. Rd7 {[%clk 0:00:05]} 1-0


[Site "https://www.chess.com"]

[Event "Titled Tuesday Blitz July 18 Late 2023"]
[White "Chor, Kevin"]
[Black "Ilyuchyk, Yana"]
[WhiteFideId "2090740"]
[BlackFideId "13508407"]
[WhiteElo "2505"]
[BlackElo "2390"]
[Result "1-0"]
[Round "7"]
[TimeControl "180+2"]
[Date "2023.07.18"]
[WhiteClock "0:00:31"]
[BlackClock "0:00:00"]
[Board "89"]

1. e4 {[%clk 0:03:00]}  c5 {[%clk 0:02:59]} 2. Nf3 {[%clk 0:03:00]}  Nc6 {[%clk 0:02:58]} 3. d4 {[%clk 0:03:00]}  cxd4 {[%clk 0:02:58]} 4. Nxd4 {[%clk 0:03:01]}  Nf6 {[%clk 0:02:58]} 5. Nc3 {[%clk 0:03:01]}  d6 {[%clk 0:02:58]} 6. Bg5 {[%clk 0:03:01]}  e6 {[%clk 0:02:58]} 7. Qd2 {[%clk 0:03:01]}  Be7 {[%clk 0:02:58]} 8. O-O-O {[%clk 0:03:01]}  O-O {[%clk 0:02:58]} 9. f3 {[%clk 0:03:01]}  a6 {[%clk 0:02:56]} 10. Kb1 {[%clk 0:03:01]}  Nxd4 {[%clk 0:02:56]} 11. Qxd4 {[%clk 0:03:02]}  b5 {[%clk 0:02:56]} 12. g4 {[%clk 0:02:58]}  Bb7 {[%clk 0:02:55]} 13. Bd3 {[%clk 0:02:51]}  Nd7 {[%clk 0:02:51]} 14. h4 {[%clk 0:02:43]}  Nc5 {[%clk 0:02:04]} 15. Bxe7 {[%clk 0:02:29]}  Qxe7 {[%clk 0:02:03]} 16. h5 {[%clk 0:02:22]}  e5 {[%clk 0:01:57]} 17. Qe3 {[%clk 0:02:20]}  Ne6 {[%clk 0:01:55]} 18. Nd5 {[%clk 0:02:10]}  Bxd5 {[%clk 0:01:54]} 19. exd5 {[%clk 0:02:11]}  Nf4 {[%clk 0:01:54]} 20. Rde1 {[%clk 0:02:10]}  Qa7 {[%clk 0:01:27]} 21. Qe4 {[%clk 0:02:07]}  g6 {[%clk 0:01:22]} 22. hxg6 {[%clk 0:02:00]}  fxg6 {[%clk 0:01:21]} 23. Rh2 {[%clk 0:02:00]}  Rf7 {[%clk 0:01:15]} 24. Reh1 {[%clk 0:01:58]}  Raf8 {[%clk 0:01:10]} 25. g5 {[%clk 0:01:57]}  Rg7 {[%clk 0:00:58]} 26. a3 {[%clk 0:01:35]}  Qc5 {[%clk 0:00:56]} 27. Rd1 {[%clk 0:01:12]}  Rf5 {[%clk 0:00:52]} 28. Qe1 {[%clk 0:00:56]}  Rxg5 {[%clk 0:00:46]} 29. Be4 {[%clk 0:00:54]}  h5 {[%clk 0:00:34]} 30. Qa5 {[%clk 0:00:54]}  Rg1 {[%clk 0:00:26]} 31. Rh1 {[%clk 0:00:53]}  Rxd1+ {[%clk 0:00:19]} 32. Rxd1 {[%clk 0:00:53]}  Qa7 {[%clk 0:00:14]} 33. Qd8+ {[%clk 0:00:48]}  Kh7 {[%clk 0:00:14]} 34. Qxd6 {[%clk 0:00:48]}  Qe7 {[%clk 0:00:13]} 35. Qxa6 {[%clk 0:00:48]}  h4 {[%clk 0:00:11]} 36. d6 {[%clk 0:00:48]}  Qe6 {[%clk 0:00:10]} 37. Qxb5 {[%clk 0:00:42]}  h3 {[%clk 0:00:08]} 38. d7 {[%clk 0:00:41]}  Rg8 {[%clk 0:00:05]} 39. d8=Q {[%clk 0:00:37]}  Rxd8 {[%clk 0:00:06]} 40. Rxd8 {[%clk 0:00:38]}  h2 {[%clk 0:00:05]} 41. Qb7+ {[%clk 0:00:38]}  Kh6 {[%clk 0:00:05]} 42. Rh8+ {[%clk 0:00:38]}  Kg5 {[%clk 0:00:04]} 43. Rxh2 {[%clk 0:00:38]}  Qd6 {[%clk 0:00:03]} 44. Rh1 {[%clk 0:00:36]}  Ne2 {[%clk 0:00:00]} 45. Qd5 {[%clk 0:00:31]} 1-0


[Site "https://www.chess.com"]